[Event "*** Titled Tuesday Blitz"]
[Site "Chess.com"]
[Date "2021.02.02"]
[Round "5"]
[White "jacky72"]
[Black "CrushingKings"]
[Result "1-0"]
[WhiteElo "2682"]
[BlackElo "2346"]
[TimeControl "180+1"]
[EndTime "10:58:48 PST"]
[Termination "jacky72 won by resignation"]

1. d4 {[%clk 0:03:00.2]} 1... Nf6 {[%clk 0:02:59.9]} 2. c4 {[%clk 0:03:00.2]}
2... g6 {[%clk 0:03:00.4]} 3. Nc3 {[%clk 0:02:59.9]} 3... d6 {[%clk 0:03:00.6]}
4. e4 {[%clk 0:02:59.9]} 4... Bg7 {[%clk 0:03:01.1]} 5. Be2 {[%clk 0:03:00]}
5... Nbd7 {[%clk 0:03:01.2]} 6. Bg5 {[%clk 0:02:59.8]} 6... e5 {[%clk
0:03:01.7]} 7. d5 {[%clk 0:02:59.7]} 7... Nc5 {[%clk 0:03:02]} 8. f3 {[%clk
0:02:59.5]} 8... a5 {[%clk 0:03:02.2]} 9. Qd2 {[%clk 0:02:59.2]} 9... Bd7 {[%clk
0:03:00.2]} 10. h4 {[%clk 0:02:55.4]} 10... h6 {[%clk 0:03:00.3]} 11. Be3 {[%clk
0:02:55.3]} 11... Nh5 {[%clk 0:03:00.3]} 12. Bf2 {[%clk 0:02:43.9]} 12... Nf4
{[%clk 0:02:58.6]} 13. g3 {[%clk 0:02:40.1]} 13... Nxe2 {[%clk 0:02:43]} 14.
Ngxe2 {[%clk 0:02:41]} 14... f5 {[%clk 0:02:43.7]} 15. Bxc5 {[%clk 0:02:26.9]}
15... dxc5 {[%clk 0:02:42.8]} 16. h5 {[%clk 0:02:27.4]} 16... Qg5 {[%clk
0:02:35.3]} 17. hxg6 {[%clk 0:02:18.2]} 17... Qxg6 {[%clk 0:02:33.8]} 18. O-O-O
{[%clk 0:02:17.8]} 18... O-O-O {[%clk 0:02:29.9]} 19. exf5 {[%clk 0:02:15.1]}
19... Bxf5 {[%clk 0:02:29.1]} 20. g4 {[%clk 0:02:15.5]} 20... Bd7 {[%clk
0:02:25.8]} 21. Ne4 {[%clk 0:02:15.8]} 21... b6 {[%clk 0:02:20.5]} 22. N2g3
{[%clk 0:02:08.3]} 22... Rdf8 {[%clk 0:02:11.9]} 23. Qd3 {[%clk 0:02:02]} 23...
Rf7 {[%clk 0:01:59.2]} 24. Rdf1 {[%clk 0:01:42.8]} 24... Rhf8 {[%clk 0:01:58.4]}
25. Kc2 {[%clk 0:01:37.5]} 25... Kb8 {[%clk 0:01:50.4]} 26. b3 {[%clk 0:01:00]}
26... Ka7 {[%clk 0:01:38.1]} 27. a3 {[%clk 0:00:58]} 27... Bf6 {[%clk
0:01:34.5]} 28. Nxc5 {[%clk 0:00:52.7]} 28... e4 {[%clk 0:01:24.1]} 29. Qxe4
{[%clk 0:00:45.2]} 29... Qg7 {[%clk 0:01:24.1]} 30. Nxd7 {[%clk 0:00:43.5]}
30... Rxd7 {[%clk 0:01:24.1]} 31. Nf5 {[%clk 0:00:40.5]} 31... Qf7 {[%clk
0:01:17.1]} 32. Qe6 {[%clk 0:00:32.7]} 32... Bg5 {[%clk 0:01:03]} 33. Qxf7
{[%clk 0:00:30.4]} 33... Rdxf7 {[%clk 0:01:03.9]} 34. f4 {[%clk 0:00:28.7]}
34... Bd8 {[%clk 0:01:01.7]} 35. Rxh6 {[%clk 0:00:25.9]} 35... Rg8 {[%clk
0:01:02.3]} 36. Ne3 {[%clk 0:00:17.9]} 36... Re7 {[%clk 0:01:02.8]} 37. Kd3
{[%clk 0:00:17.6]} 37... Rge8 {[%clk 0:01:02.1]} 38. Re6 {[%clk 0:00:18.1]}
38... Rxe6 {[%clk 0:01:02.2]} 39. dxe6 {[%clk 0:00:19]} 39... Rxe6 {[%clk
0:01:03.1]} 40. f5 {[%clk 0:00:19.9]} 40... Rd6+ {[%clk 0:01:03.5]} 41. Ke4
{[%clk 0:00:20.5]} 41... Bg5 {[%clk 0:01:04]} 42. Nd5 {[%clk 0:00:20.6]} 42...
c6 {[%clk 0:01:03.8]} 43. Nf4 {[%clk 0:00:20.4]} 43... Kb7 {[%clk 0:01:03.2]}
44. Ne6 {[%clk 0:00:20.9]} 44... Be7 {[%clk 0:01:01.1]} 45. Ke5 {[%clk
0:00:20.2]} 45... Rd3 {[%clk 0:00:59.4]} 46. f6 {[%clk 0:00:20.1]} 46... Bxa3
{[%clk 0:00:58.3]} 47. f7 {[%clk 0:00:19]} 47... Rg3 {[%clk 0:00:58.7]} 48. g5
{[%clk 0:00:18.5]} 48... Bb2+ {[%clk 0:00:57.3]} 49. Kf5 {[%clk 0:00:18.3]}
49... Ba3 {[%clk 0:00:57.5]} 50. g6 {[%clk 0:00:18.6]} 50... Rxb3 {[%clk
0:00:55.8]} 51. g7 {[%clk 0:00:18.5]} 51... b5 {[%clk 0:00:51.6]} 52. c5 {[%clk
0:00:18.2]} 1-0

[Event "*** Titled Tuesday Blitz"]
[Site "Chess.com"]
[Date "2021.02.02"]
[Round "5"]
[White "novocane"]
[Black "zurzan"]
[Result "0-1"]
[WhiteElo "2248"]
[BlackElo "2033"]
[TimeControl "180+1"]
[EndTime "10:58:48 PST"]
[Termination "zurzan won on time"]

1. d4 {[%clk 0:02:59.9]} 1... d6 {[%clk 0:03:00.9]} 2. e4 {[%clk 0:02:58.3]}
2... Nf6 {[%clk 0:02:59.9]} 3. f3 {[%clk 0:02:57.2]} 3... Nbd7 {[%clk
0:02:59.9]} 4. Be3 {[%clk 0:02:56.6]} 4... e5 {[%clk 0:03:00]} 5. d5 {[%clk
0:02:48.5]} 5... c6 {[%clk 0:02:56.7]} 6. c4 {[%clk 0:02:46.4]} 6... cxd5 {[%clk
0:02:56.1]} 7. cxd5 {[%clk 0:02:45.6]} 7... Be7 {[%clk 0:02:55.8]} 8. Nc3 {[%clk
0:02:44.8]} 8... O-O {[%clk 0:02:55.2]} 9. Nh3 {[%clk 0:02:33.8]} 9... a6 {[%clk
0:02:46.3]} 10. Be2 {[%clk 0:02:28.1]} 10... b5 {[%clk 0:02:45.5]} 11. O-O
{[%clk 0:02:25.5]} 11... Re8 {[%clk 0:02:34.2]} 12. Qd2 {[%clk 0:02:22.8]} 12...
Nf8 {[%clk 0:02:32.9]} 13. Nf2 {[%clk 0:02:22.2]} 13... Ng6 {[%clk 0:02:31.3]}
14. g3 {[%clk 0:02:14]} 14... h6 {[%clk 0:02:28]} 15. a4 {[%clk 0:02:13.3]}
15... b4 {[%clk 0:02:26.4]} 16. Na2 {[%clk 0:02:08.3]} 16... a5 {[%clk
0:02:26.4]} 17. Nc1 {[%clk 0:02:06.1]} 17... Nh7 {[%clk 0:02:08.1]} 18. Bb5
{[%clk 0:01:58.4]} 18... Rf8 {[%clk 0:02:03.7]} 19. Bc6 {[%clk 0:01:41.2]} 19...
Ba6 {[%clk 0:01:59.5]} 20. Bxa8 {[%clk 0:01:23.7]} 20... Bxf1 {[%clk 0:01:58.9]}
21. Kxf1 {[%clk 0:00:57.6]} 21... Qxa8 {[%clk 0:01:58.1]} 22. Nb3 {[%clk
0:00:55.5]} 22... f5 {[%clk 0:01:44.4]} 23. Kg2 {[%clk 0:00:23.4]} 23... f4
{[%clk 0:01:43.7]} 24. Bb6 {[%clk 0:00:19.9]} 24... fxg3 {[%clk 0:01:41.9]} 25.
hxg3 {[%clk 0:00:19.7]} 25... Ng5 {[%clk 0:01:39.6]} 26. Qe3 {[%clk 0:00:11.7]}
26... Rxf3 {[%clk 0:01:37.3]} 27. Qxf3 {[%clk 0:00:12.1]} 27... Nxf3 {[%clk
0:01:37]} 28. Kxf3 {[%clk 0:00:13]} 28... Qf8+ {[%clk 0:01:33.9]} 29. Kg2 {[%clk
0:00:13.1]} 29... Bd8 {[%clk 0:01:30.4]} 30. Bxa5 {[%clk 0:00:10.7]} 30... Bxa5
{[%clk 0:01:30]} 31. Nxa5 {[%clk 0:00:11.6]} 31... Qa8 {[%clk 0:01:24.8]} 32.
Nc6 {[%clk 0:00:11.5]} 32... Qa6 {[%clk 0:01:22.3]} 33. a5 {[%clk 0:00:11]}
33... b3 {[%clk 0:01:21.2]} 34. Nb4 {[%clk 0:00:09]} 34... Qe2 {[%clk
0:01:19.1]} 35. Nd3 {[%clk 0:00:06.5]} 35... Ne7 {[%clk 0:01:06.9]} 36. a6
{[%clk 0:00:06.7]} 36... Nc8 {[%clk 0:01:06.6]} 37. a7 {[%clk 0:00:07.1]} 37...
Nxa7 {[%clk 0:01:06.6]} 38. Rxa7 {[%clk 0:00:08]} 38... g5 {[%clk 0:00:57.9]}
39. Rb7 {[%clk 0:00:07]} 39... Qc2 {[%clk 0:00:56.2]} 40. Rd7 {[%clk 0:00:06.4]}
40... g4 {[%clk 0:00:55]} 41. Rxd6 {[%clk 0:00:05.9]} 41... Qe2 {[%clk
0:00:54.7]} 42. Rf6 {[%clk 0:00:05.2]} 42... h5 {[%clk 0:00:50.9]} 43. Rf5
{[%clk 0:00:05.2]} 43... Kg7 {[%clk 0:00:50.1]} 44. Kh2 {[%clk 0:00:02.1]} 44...
Kg6 {[%clk 0:00:49.8]} 0-1

[Event "*** Titled Tuesday Blitz"]
[Site "Chess.com"]
[Date "2021.02.02"]
[Round "5"]
[White "drragnar1"]
[Black "chessdjw"]
[Result "0-1"]
[WhiteElo "2377"]
[BlackElo "2582"]
[TimeControl "180+1"]
[EndTime "10:58:49 PST"]
[Termination "chessdjw won on time"]

1. c4 {[%clk 0:02:58.5]} 1... e5 {[%clk 0:02:53.3]} 2. g3 {[%clk 0:02:58.1]}
2... c6 {[%clk 0:02:50.1]} 3. Bg2 {[%clk 0:02:55.9]} 3... d5 {[%clk 0:02:49.3]}
4. cxd5 {[%clk 0:02:55.6]} 4... cxd5 {[%clk 0:02:46.9]} 5. Nf3 {[%clk
0:02:56.1]} 5... e4 {[%clk 0:02:42]} 6. Nd4 {[%clk 0:02:54.3]} 6... Bc5 {[%clk
0:02:37.9]} 7. Nb3 {[%clk 0:02:49.7]} 7... Bb6 {[%clk 0:02:37.8]} 8. O-O {[%clk
0:02:49.7]} 8... Nf6 {[%clk 0:02:37]} 9. d3 {[%clk 0:02:49.3]} 9... O-O {[%clk
0:02:34.5]} 10. Bg5 {[%clk 0:02:48.7]} 10... h6 {[%clk 0:01:54.8]} 11. Bxf6
{[%clk 0:02:46.8]} 11... Qxf6 {[%clk 0:01:55.7]} 12. Nc3 {[%clk 0:02:45.9]}
12... Rd8 {[%clk 0:01:47.5]} 13. dxe4 {[%clk 0:02:28.2]} 13... dxe4 {[%clk
0:01:46.9]} 14. Nxe4 {[%clk 0:02:27.1]} 14... Qxb2 {[%clk 0:01:41]} 15. Qc1
{[%clk 0:02:10.7]} 15... Qxc1 {[%clk 0:01:22.4]} 16. Raxc1 {[%clk 0:02:11.5]}
16... Nc6 {[%clk 0:01:21.5]} 17. Nec5 {[%clk 0:02:01.7]} 17... Rb8 {[%clk
0:00:59.5]} 18. Rfd1 {[%clk 0:01:44.7]} 18... Rxd1+ {[%clk 0:00:51.5]} 19. Rxd1
{[%clk 0:01:45.4]} 19... Bg4 {[%clk 0:00:50.7]} 20. Nxb7 {[%clk 0:01:35.6]}
20... Rxb7 {[%clk 0:00:46.9]} 21. Bxc6 {[%clk 0:01:34.1]} 21... Bxe2 {[%clk
0:00:45]} 22. Rd2 {[%clk 0:01:10.4]} 22... Rc7 {[%clk 0:00:44.4]} 23. Rxe2
{[%clk 0:01:06.1]} 23... Rxc6 {[%clk 0:00:44.7]} 24. Kg2 {[%clk 0:01:06.1]}
24... Kf8 {[%clk 0:00:44.6]} 25. f4 {[%clk 0:01:05.3]} 25... Rc3 {[%clk
0:00:39.8]} 26. h3 {[%clk 0:00:56.9]} 26... h5 {[%clk 0:00:39.5]} 27. g4 {[%clk
0:00:56.4]} 27... h4 {[%clk 0:00:39.8]} 28. f5 {[%clk 0:00:55.4]} 28... Rg3+
{[%clk 0:00:32.7]} 29. Kh2 {[%clk 0:00:55.6]} 29... Bg1+ {[%clk 0:00:33]} 30.
Kh1 {[%clk 0:00:55.3]} 30... Bb6 {[%clk 0:00:33.9]} 31. Kh2 {[%clk 0:00:48.5]}
31... Bc7 {[%clk 0:00:34.4]} 32. Kh1 {[%clk 0:00:36]} 32... Rxh3+ {[%clk
0:00:34.7]} 33. Kg1 {[%clk 0:00:35.6]} 33... Bb6+ {[%clk 0:00:32.3]} 34. Kg2
{[%clk 0:00:33.8]} 34... Rg3+ {[%clk 0:00:32.3]} 35. Kh2 {[%clk 0:00:34.7]}
35... Bc7 {[%clk 0:00:30.2]} 36. Nd2 {[%clk 0:00:35.6]} 36... Re3+ {[%clk
0:00:29.3]} 0-1

[Event "*** Titled Tuesday Blitz"]
[Site "Chess.com"]
[Date "2021.02.02"]
[Round "5"]
[White "Bodnar_Mykola"]
[Black "hangemhigh"]
[Result "1-0"]
[WhiteElo "2542"]
[BlackElo "2286"]
[TimeControl "180+1"]
[EndTime "10:58:49 PST"]
[Termination "Bodnar_Mykola won on time"]

1. e4 {[%clk 0:03:00.9]} 1... d6 {[%clk 0:01:45.3]} 2. d4 {[%clk 0:02:58.4]}
2... Nf6 {[%clk 0:01:44.3]} 3. Nc3 {[%clk 0:02:57.6]} 3... c6 {[%clk 0:01:43.4]}
4. Bg5 {[%clk 0:02:54.2]} 4... Qb6 {[%clk 0:01:39.6]} 5. Rb1 {[%clk 0:02:50.9]}
5... Qa5 {[%clk 0:01:36.5]} 6. Bxf6 {[%clk 0:02:48.7]} 6... gxf6 {[%clk
0:01:34.5]} 7. Qd2 {[%clk 0:02:48]} 7... f5 {[%clk 0:01:30.9]} 8. b4 {[%clk
0:02:44.5]} 8... Qb6 {[%clk 0:01:22.4]} 9. Nf3 {[%clk 0:02:39.1]} 9... Rg8
{[%clk 0:01:18.9]} 10. g3 {[%clk 0:02:31.6]} 10... fxe4 {[%clk 0:01:10.2]} 11.
Nxe4 {[%clk 0:02:32.5]} 11... Be6 {[%clk 0:01:09.1]} 12. a4 {[%clk 0:02:23.6]}
12... a5 {[%clk 0:01:06.1]} 13. b5 {[%clk 0:02:23.5]} 13... Bd5 {[%clk
0:01:00.5]} 14. Qe3 {[%clk 0:02:14.1]} 14... Bxe4 {[%clk 0:00:52.2]} 15. Qxe4
{[%clk 0:02:15]} 15... d5 {[%clk 0:00:45.3]} 16. Qxh7 {[%clk 0:02:13.7]} 16...
Rg6 {[%clk 0:00:43.6]} 17. Bd3 {[%clk 0:02:10.1]} 17... Re6+ {[%clk 0:00:42]}
18. Kf1 {[%clk 0:02:08.7]} 18... c5 {[%clk 0:00:40.2]} 19. dxc5 {[%clk
0:02:07.8]} 19... Qxc5 {[%clk 0:00:39.7]} 20. Kg2 {[%clk 0:02:03.3]} 20... Nd7
{[%clk 0:00:39.3]} 21. Rhe1 {[%clk 0:01:59.9]} 21... Rf6 {[%clk 0:00:36.5]} 22.
h4 {[%clk 0:01:43.3]} 22... O-O-O {[%clk 0:00:35.6]} 23. h5 {[%clk 0:01:38]}
23... Kb8 {[%clk 0:00:34.8]} 24. c4 {[%clk 0:01:33.7]} 24... dxc4 {[%clk
0:00:18.2]} 25. Rbc1 {[%clk 0:01:34.6]} 25... Qd5 {[%clk 0:00:14.3]} 26. Be4
{[%clk 0:01:32.8]} 26... Qd6 {[%clk 0:00:13.8]} 27. Rxc4 {[%clk 0:01:29.2]}
27... Ne5 {[%clk 0:00:13.6]} 28. Nxe5 {[%clk 0:01:23.4]} 28... Qxe5 {[%clk
0:00:14.5]} 29. Re2 {[%clk 0:01:06.9]} 29... Rd4 {[%clk 0:00:12.3]} 30. Rxd4
{[%clk 0:01:06.1]} 30... Qxd4 {[%clk 0:00:13.2]} 31. Qg8 {[%clk 0:01:04.3]}
31... Qd8 {[%clk 0:00:12.2]} 32. g4 {[%clk 0:01:02.5]} 32... e6 {[%clk
0:00:11.9]} 33. g5 {[%clk 0:01:01.8]} 33... Rf4 {[%clk 0:00:12]} 34. f3 {[%clk
0:00:58.4]} 34... Ka7 {[%clk 0:00:11.9]} 35. h6 {[%clk 0:00:58.1]} 35... Rh4
{[%clk 0:00:09.7]} 36. h7 {[%clk 0:00:57.8]} 36... Qe7 {[%clk 0:00:09.4]} 37.
b6+ {[%clk 0:00:53.9]} 37... Kxb6 {[%clk 0:00:08.6]} 38. h8=Q {[%clk 0:00:53.7]}
38... Rxh8 {[%clk 0:00:08]} 39. Qxh8 {[%clk 0:00:54.6]} 39... Qxg5+ {[%clk
0:00:08.2]} 40. Kh3 {[%clk 0:00:54.4]} 40... Bd6 {[%clk 0:00:07.7]} 41. Qd4+
{[%clk 0:00:52.9]} 41... Kc7 {[%clk 0:00:07.2]} 42. Rc2+ {[%clk 0:00:52.4]}
42... Kd7 {[%clk 0:00:07.6]} 43. Qf2 {[%clk 0:00:31.8]} 43... Qf4 {[%clk
0:00:01]} 44. Kg2 {[%clk 0:00:30.4]} 1-0

[Event "*** Titled Tuesday Blitz"]
[Site "Chess.com"]
[Date "2021.02.02"]
[Round "5"]
[White "Squirlolz"]
[Black "Mbneu"]
[Result "1-0"]
[WhiteElo "2499"]
[BlackElo "2295"]
[TimeControl "180+1"]
[EndTime "10:58:51 PST"]
[Termination "Squirlolz won by resignation"]

1. d4 {[%clk 0:03:00.9]} 1... Nf6 {[%clk 0:02:59.3]} 2. Nf3 {[%clk 0:02:52.4]}
2... c5 {[%clk 0:02:59.1]} 3. d5 {[%clk 0:02:50.7]} 3... e6 {[%clk 0:02:57.3]}
4. c4 {[%clk 0:02:48.6]} 4... exd5 {[%clk 0:02:56.5]} 5. cxd5 {[%clk 0:02:49.5]}
5... d6 {[%clk 0:02:57]} 6. g3 {[%clk 0:02:49.1]} 6... g6 {[%clk 0:02:56.6]} 7.
Bg2 {[%clk 0:02:49.3]} 7... Bg7 {[%clk 0:02:57]} 8. O-O {[%clk 0:02:50.1]} 8...
O-O {[%clk 0:02:56.7]} 9. Nc3 {[%clk 0:02:49.8]} 9... a6 {[%clk 0:02:52.9]} 10.
a4 {[%clk 0:02:49.3]} 10... Re8 {[%clk 0:02:53.3]} 11. Bf4 {[%clk 0:02:48.1]}
11... Bf5 {[%clk 0:02:51.7]} 12. Nd2 {[%clk 0:02:44.7]} 12... Nh5 {[%clk
0:02:50.6]} 13. e4 {[%clk 0:02:41.5]} 13... Nxf4 {[%clk 0:02:47.2]} 14. gxf4
{[%clk 0:02:42.4]} 14... Bc8 {[%clk 0:02:38.7]} 15. Nc4 {[%clk 0:02:37.2]} 15...
Bd4 {[%clk 0:01:58]} 16. a5 {[%clk 0:01:59.7]} 16... Qf6 {[%clk 0:01:19.4]} 17.
Qf3 {[%clk 0:01:59]} 17... Nd7 {[%clk 0:01:15.2]} 18. e5 {[%clk 0:01:48.2]}
18... dxe5 {[%clk 0:01:12.8]} 19. Ne4 {[%clk 0:01:47.6]} 19... Qg7 {[%clk
0:01:08.6]} 20. f5 {[%clk 0:01:41.8]} 20... Nf6 {[%clk 0:01:04.9]} 21. fxg6
{[%clk 0:01:37.6]} 21... Nxe4 {[%clk 0:00:57.3]} 22. gxf7+ {[%clk 0:01:37.9]}
22... Qxf7 {[%clk 0:00:56.5]} 23. Qxe4 {[%clk 0:01:36]} 23... Bf5 {[%clk
0:00:54.7]} 24. Qh4 {[%clk 0:01:32.8]} 24... Rad8 {[%clk 0:00:51.3]} 25. Rae1
{[%clk 0:01:20.5]} 25... Qg7 {[%clk 0:00:46.1]} 26. Kh1 {[%clk 0:01:18.3]} 26...
Kh8 {[%clk 0:00:33.5]} 27. d6 {[%clk 0:01:15.8]} 27... Bd3 {[%clk 0:00:26.3]}
28. Bd5 {[%clk 0:00:27.7]} 28... Bxf1 {[%clk 0:00:24.8]} 29. Rxf1 {[%clk
0:00:28.6]} 29... Rf8 {[%clk 0:00:21.7]} 30. Rg1 {[%clk 0:00:27.9]} 30... Qf6
{[%clk 0:00:20.8]} 31. Qh5 {[%clk 0:00:24.8]} 31... Rd7 {[%clk 0:00:15.9]} 32.
Rg2 {[%clk 0:00:22.7]} 32... Rg7 {[%clk 0:00:15.5]} 33. f3 {[%clk 0:00:22]}
33... Rxg2 {[%clk 0:00:14.4]} 34. Kxg2 {[%clk 0:00:22.9]} 34... Qg6+ {[%clk
0:00:14.7]} 35. Qxg6 {[%clk 0:00:23]} 35... hxg6 {[%clk 0:00:15.6]} 36. Bxb7
{[%clk 0:00:21.1]} 36... Rd8 {[%clk 0:00:14.7]} 37. Bxa6 {[%clk 0:00:20.8]}
37... Kg7 {[%clk 0:00:14.9]} 38. Bb7 {[%clk 0:00:21.1]} 38... Kf6 {[%clk
0:00:15.3]} 39. a6 {[%clk 0:00:21.7]} 39... Ke6 {[%clk 0:00:14.7]} 40. a7 {[%clk
0:00:22]} 40... Kd7 {[%clk 0:00:13]} 41. a8=Q {[%clk 0:00:15.5]} 41... Rxa8
{[%clk 0:00:13.4]} 42. Bxa8 {[%clk 0:00:16.4]} 1-0

[Event "*** Titled Tuesday Blitz"]
[Site "Chess.com"]
[Date "2021.02.02"]
[Round "5"]
[White "jorquerino"]
[Black "Nozdrachev_Leonid"]
[Result "0-1"]
[WhiteElo "2287"]
[BlackElo "2526"]
[TimeControl "180+1"]
[EndTime "10:58:51 PST"]
[Termination "Nozdrachev_Leonid won by resignation"]

1. e4 {[%clk 0:03:00.9]} 1... d6 {[%clk 0:02:59]} 2. Nc3 {[%clk 0:03:00]} 2...
c5 {[%clk 0:02:56.4]} 3. g3 {[%clk 0:02:59.3]} 3... g6 {[%clk 0:02:56.6]} 4. Bg2
{[%clk 0:02:58.8]} 4... Bg7 {[%clk 0:02:57.1]} 5. d3 {[%clk 0:02:59]} 5... Nf6
{[%clk 0:02:57.5]} 6. h3 {[%clk 0:02:58.2]} 6... O-O {[%clk 0:02:57.9]} 7. Nge2
{[%clk 0:02:56.9]} 7... Nc6 {[%clk 0:02:56.8]} 8. O-O {[%clk 0:02:56.5]} 8...
Rb8 {[%clk 0:02:56.1]} 9. a4 {[%clk 0:02:56]} 9... a6 {[%clk 0:02:54.9]} 10. Be3
{[%clk 0:02:54.8]} 10... b5 {[%clk 0:02:46.4]} 11. axb5 {[%clk 0:02:55.7]} 11...
axb5 {[%clk 0:02:47.1]} 12. Qd2 {[%clk 0:02:56.1]} 12... b4 {[%clk 0:02:41.4]}
13. Nd1 {[%clk 0:02:56.1]} 13... e5 {[%clk 0:02:35.1]} 14. Bh6 {[%clk
0:02:53.5]} 14... Nd4 {[%clk 0:02:29.9]} 15. Bxg7 {[%clk 0:02:50.2]} 15... Kxg7
{[%clk 0:02:30.8]} 16. f4 {[%clk 0:02:49.3]} 16... Qb6 {[%clk 0:02:20.7]} 17.
Kh2 {[%clk 0:02:29.5]} 17... Be6 {[%clk 0:02:07.7]} 18. Ne3 {[%clk 0:02:25.6]}
18... exf4 {[%clk 0:02:03.2]} 19. Nxf4 {[%clk 0:02:22]} 19... Rbe8 {[%clk
0:01:58.5]} 20. Rf2 {[%clk 0:02:14.8]} 20... Nd7 {[%clk 0:01:43.5]} 21. Nfd5
{[%clk 0:01:58.6]} 21... Qd8 {[%clk 0:01:36.2]} 22. Raf1 {[%clk 0:01:34.1]}
22... Bxd5 {[%clk 0:01:35]} 23. Nxd5 {[%clk 0:01:32.9]} 23... h6 {[%clk
0:01:27.9]} 24. c3 {[%clk 0:01:28.9]} 24... bxc3 {[%clk 0:01:25.4]} 25. bxc3
{[%clk 0:01:29.8]} 25... Ne6 {[%clk 0:01:25.7]} 26. Qb2 {[%clk 0:01:13.3]} 26...
h5 {[%clk 0:01:18.2]} 27. Nf4 {[%clk 0:00:55.6]} 27... h4 {[%clk 0:01:10.6]} 28.
Nxe6+ {[%clk 0:00:51.2]} 28... fxe6 {[%clk 0:01:09.4]} 29. g4 {[%clk 0:00:48.6]}
29... Ne5 {[%clk 0:01:07.1]} 30. Qd2 {[%clk 0:00:43.6]} 30... Rxf2 {[%clk
0:01:01.9]} 31. Rxf2 {[%clk 0:00:43.3]} 31... Rf8 {[%clk 0:01:01.6]} 32. d4
{[%clk 0:00:40.4]} 32... Nc4 {[%clk 0:00:50.1]} 33. Qe1 {[%clk 0:00:33.4]} 33...
Rxf2 {[%clk 0:00:45]} 34. Qxf2 {[%clk 0:00:34.3]} 34... Qf6 {[%clk 0:00:44.8]}
35. Qxf6+ {[%clk 0:00:14.7]} 35... Kxf6 {[%clk 0:00:45.7]} 36. Kg1 {[%clk
0:00:14.5]} 36... e5 {[%clk 0:00:41.9]} 37. dxc5 {[%clk 0:00:13.3]} 37... dxc5
{[%clk 0:00:41.1]} 38. Kf2 {[%clk 0:00:14]} 38... Kg5 {[%clk 0:00:40.1]} 39. Bf1
{[%clk 0:00:12.3]} 39... Nd2 {[%clk 0:00:35.9]} 40. Bd3 {[%clk 0:00:07.3]} 40...
Kf4 {[%clk 0:00:35.6]} 41. Ke2 {[%clk 0:00:07.7]} 41... Nxe4 {[%clk 0:00:33.3]}
42. c4 {[%clk 0:00:06.9]} 42... g5 {[%clk 0:00:31.9]} 43. Bc2 {[%clk 0:00:06]}
43... Nd6 {[%clk 0:00:29.5]} 44. Bd3 {[%clk 0:00:05.2]} 44... e4 {[%clk
0:00:29.6]} 0-1

[Event "*** Titled Tuesday Blitz"]
[Site "Chess.com"]
[Date "2021.02.02"]
[Round "5"]
[White "Lagmantr"]
[Black "PLAYER_2006_M"]
[Result "1-0"]
[WhiteElo "2761"]
[BlackElo "2540"]
[TimeControl "180+1"]
[EndTime "10:58:52 PST"]
[Termination "Lagmantr won by resignation"]

1. c4 {[%clk 0:03:00.9]} 1... e5 {[%clk 0:02:58.8]} 2. Nc3 {[%clk 0:03:01.6]}
2... Nc6 {[%clk 0:02:59]} 3. g3 {[%clk 0:03:01.6]} 3... Bc5 {[%clk 0:02:58.9]}
4. Bg2 {[%clk 0:03:01.6]} 4... d6 {[%clk 0:02:59.4]} 5. e3 {[%clk 0:03:02.1]}
5... a6 {[%clk 0:02:58.9]} 6. Nge2 {[%clk 0:03:02.4]} 6... Ba7 {[%clk
0:02:59.5]} 7. O-O {[%clk 0:03:02.5]} 7... h5 {[%clk 0:02:59.8]} 8. h3 {[%clk
0:03:02]} 8... h4 {[%clk 0:02:58.2]} 9. g4 {[%clk 0:03:01.6]} 9... f5 {[%clk
0:02:58.6]} 10. f3 {[%clk 0:02:53.2]} 10... Nf6 {[%clk 0:02:33.6]} 11. d4 {[%clk
0:02:52.9]} 11... Qe7 {[%clk 0:02:20.4]} 12. g5 {[%clk 0:02:45]} 12... Nh5
{[%clk 0:02:19.6]} 13. f4 {[%clk 0:02:45.2]} 13... e4 {[%clk 0:02:16.3]} 14. Nd5
{[%clk 0:02:40.1]} 14... Qd8 {[%clk 0:02:16.2]} 15. b4 {[%clk 0:02:40.2]} 15...
Ne7 {[%clk 0:02:15.8]} 16. Nxe7 {[%clk 0:02:35]} 16... Qxe7 {[%clk 0:02:16.7]}
17. c5 {[%clk 0:02:35.5]} 17... d5 {[%clk 0:02:10]} 18. a4 {[%clk 0:02:24.9]}
18... c6 {[%clk 0:02:06.1]} 19. Bd2 {[%clk 0:02:24.7]} 19... Bb8 {[%clk
0:02:05.2]} 20. Be1 {[%clk 0:02:24.1]} 20... g6 {[%clk 0:01:55.9]} 21. Bxh4
{[%clk 0:02:19.5]} 21... Nxf4 {[%clk 0:01:39.9]} 22. Nxf4 {[%clk 0:01:53.7]}
22... Rxh4 {[%clk 0:01:38]} 23. Nxg6 {[%clk 0:01:53.6]} 23... Qc7 {[%clk
0:01:07.1]} 24. Rf4 {[%clk 0:01:52.3]} 24... Rxf4 {[%clk 0:01:00.2]} 25. exf4
{[%clk 0:01:46.5]} 25... Qh7 {[%clk 0:00:58.6]} 26. Ne5 {[%clk 0:01:46]} 26...
Be6 {[%clk 0:00:56.9]} 27. b5 {[%clk 0:01:40.9]} 27... Bxe5 {[%clk 0:00:47.7]}
28. dxe5 {[%clk 0:01:38.3]} 28... Qh4 {[%clk 0:00:46.4]} 29. bxc6 {[%clk
0:01:34.5]} 29... bxc6 {[%clk 0:00:44.6]} 30. Qd2 {[%clk 0:01:32.2]} 30... Rb8
{[%clk 0:00:43.7]} 31. Qf2 {[%clk 0:01:28.5]} 31... Qxf2+ {[%clk 0:00:41.7]} 32.
Kxf2 {[%clk 0:01:29.4]} 32... Rb2+ {[%clk 0:00:42]} 33. Kg3 {[%clk 0:01:29]}
33... d4 {[%clk 0:00:42]} 34. h4 {[%clk 0:01:20.9]} 34... d3 {[%clk 0:00:41.4]}
35. h5 {[%clk 0:01:20.6]} 35... d2 {[%clk 0:00:36.8]} 36. Bf1 {[%clk 0:01:16.8]}
36... Ra2 {[%clk 0:00:32.3]} 37. Rb1 {[%clk 0:01:16.4]} 37... Ra3+ {[%clk
0:00:24.8]} 38. Kg2 {[%clk 0:01:04.9]} 38... Rb3 {[%clk 0:00:23.6]} 39. Rd1
{[%clk 0:01:01.2]} 39... e3 {[%clk 0:00:19.9]} 40. Be2 {[%clk 0:01:01.3]} 40...
Kf7 {[%clk 0:00:17.6]} 41. h6 {[%clk 0:00:59.6]} 41... Rc3 {[%clk 0:00:16.7]}
42. h7 {[%clk 0:00:56.4]} 42... Kg7 {[%clk 0:00:15.4]} 43. Rh1 {[%clk
0:00:55.3]} 43... Bd5+ {[%clk 0:00:15.6]} 44. Bf3 {[%clk 0:00:55.7]} 44... Bxf3+
{[%clk 0:00:07.9]} 45. Kxf3 {[%clk 0:00:56.6]} 45... d1=Q+ {[%clk 0:00:08]} 46.
Rxd1 {[%clk 0:00:56.2]} 46... Kxh7 {[%clk 0:00:08.9]} 47. Rd7+ {[%clk
0:00:52.6]} 47... Kg8 {[%clk 0:00:09.1]} 48. e6 {[%clk 0:00:52.4]} 48... e2+
{[%clk 0:00:06.5]} 49. Kxe2 {[%clk 0:00:49.4]} 49... Rxc5 {[%clk 0:00:07.1]} 50.
Rd8+ {[%clk 0:00:48.7]} 50... Kg7 {[%clk 0:00:06.9]} 51. e7 {[%clk 0:00:49.3]}
1-0